Workbook

Sheet Лист1
A1: Школа | C1: МКОУ "СОШ№2" с.п. Малка | F1: Утвердил: | G1: должность | H1: Директор
A2: Типовое примерное меню приготавливаемых блюд | G2: фамилия | H2: Хуранова Ф.Х.
A3: Возрастная категория | E3: 7-11 лет | G3: дата | H3: 10 | I3: 3 | J3: 2026
H4: день | I4: месяц | J4: год
A5: Неделя | B5: День недели | C5: Прием пищи | D5: Раздел меню | E5: Блюда | F5: Вес блюда, г | G5: Белки | H5: Жиры | I5: Углеводы | J5: Калорийность | K5: № рецептуры | L5: Цена
A6: 1 | B6: 1 | C6: Завтрак | D6: гор.блюдо | E6: Плов с мясом индейки | F6: 250 | G6: 8 | H6: 22 | I6: 29 | J6: 300 | L6: 57.09
D7: гор.напиток | E7: Компот из яблок | F7: 180 | I7: 15 | J7: 69 | L7: 3.33
D8: хлеб | E8: Хлеб пшеничный | F8: 110 | G8: 6 | H8: 2 | I8: 28 | J8: 195 | L8: 7.04
D9: закуска | E9: Овощи свежие с растительным маслом | F9: 60 | G9: 2 | H9: 3 | I9: 13 | J9: 86 | L9: 3.53
D10: фрукты | E10: Апельсин | F10: 100 | G10: 1 | H10: 0 | I10: 8 | J10: 43 | L10: 17
D13: итого | F13: =SUM(F6:F12) -> 700 | G13: =SUM(G6:G12) -> 17 | H13: 27 | I13: 93 | J13: 693 | K13: 0 | L13: 87.99
A14: =A6 -> 1 | B14: =B6 -> 1 | C14: Обед | D14: закуска
D15: 1 блюдо
D16: 2 блюдо
D17: гарнир
D18: сладкое
D19: хлеб бел.
D20: хлеб черн.
D21: фрукты
D23: итого | F23: =SUM(F14:F22) -> 0 | G23: =SUM(G14:G22) -> 0 | H23: =SUM(H14:H22) -> 0 | I23: =SUM(I14:I22) -> 0 | J23: =SUM(J14:J22) -> 0 | K23: =SUM(K14:K22) -> 0 | L23: 0
A24: =A6 -> 1 | B24: =B6 -> 1 | C24: Итого за день: | F24: =F13+F23 -> 700 | G24: =G13+G23 -> 17 | H24: =H13+H23 -> 27 | I24: =I13+I23 -> 93 | J24: =J13+J23 -> 693 | L24: =L13+L23 -> 87.99
A25: 1 | B25: 2 | C25: Завтрак | D25: гор.блюдо | E25: Котлета мясная с отварными макаронами | F25: 240 | G25: 15 | H25: 23 | I25: 25 | J25: 265 | L25: 76.6
D26: гор.напиток | E26: Чай с сахаром | F26: 200 | I26: 15 | J26: 125 | L26: 3.64
D27: хлеб | E27: Хлеб пшеничный | F27: 110 | G27: 6 | H27: 2 | I27: 28 | J27: 195 | L27: 7.04
D28: фрукты | E28: Киви | F28: 100 | G28: 1 | H28: 0 | I28: 8 | J28: 47 | L28: 27
F32: =SUM(F25:F31) -> 650 | G32: =SUM(G25:G31) -> 22 | H32: 25 | I32: 76 | J32: 632 | K32: 0 | L32: 114.28
A33: =A25 -> 1 | B33: =B25 -> 2 | C33: Обед | D33: закуска
D34: 1 блюдо
D35: 2 блюдо
D36: гарнир
D37: сладкое
D38: хлеб бел.
D39: хлеб черн.
D40: фрукты
D42: итого | F42: =SUM(F33:F41) -> 0 | G42: =SUM(G33:G41) -> 0 | H42: =SUM(H33:H41) -> 0 | I42: =SUM(I33:I41) -> 0 | J42: =SUM(J33:J41) -> 0 | K42: =SUM(K33:K41) -> 0 | L42: 0
A43: =A25 -> 1 | B43: =B25 -> 2 | C43: Итого за день: | F43: =F32+F42 -> 650 | G43: =G32+G42 -> 22 | H43: =H32+H42 -> 25 | I43: =I32+I42 -> 76 | J43: =J32+J42 -> 632 | L43: =L32+L42 -> 114.28
A44: 1 | B44: 3 | C44: Завтрак | D44: гор.блюдо | E44: Суп пшенный молочный | F44: 200 | G44: 5 | H44: 4 | I44: 23 | J44: 258 | L44: 11.31
D45: 2 гор. блюдо | E45: Соус картофельный с мясом | F45: 250 | G45: 3 | H45: 7 | I45: 17 | J45: 319 | L45: 84.59
D46: хлеб | E46: Хлеб пшеничный | F46: 110 | G46: 6 | H46: 2 | I46: 28 | J46: 195 | L46: 7.04
D47: гор. напиток | E47: Компот из яблок | F47: 180 | I47: 15 | J47: 69 | L47: 3.34
E48: Печенье | F48: 100 | G48: 7 | H48: 5 | I48: 75 | J48: 400 | L48: 19
D52: итого | F52: =SUM(F44:F51) -> 840 | G52: =SUM(G44:G51) -> 21 | H52: =SUM(H44:H51) -> 18 | I52: =SUM(I44:I51) -> 158 | J52: =SUM(J44:J51) -> 1241 | L52: =SUM(L44:L51) -> 125.28
A53: =A44 -> 1 | B53: =B44 -> 3 | C53: Обед | D53: закуска
D54: 1 блюдо
D55: 2 блюдо
D56: гарнир
D57: сладкое
D58: хлеб бел.
D59: хлеб черн.
D62: итого | F62: =SUM(F53:F61) -> 0 | G62: =SUM(G53:G61) -> 0 | H62: =SUM(H53:H61) -> 0 | I62: =SUM(I53:I61) -> 0 | J62: =SUM(J53:J61) -> 0 | K62: =SUM(K53:K61) -> 0 | L62: 0
A63: =A44 -> 1 | B63: =B44 -> 3 | C63: Итого за день: | F63: =F52+F62 -> 840 | G63: =G52+G62 -> 21 | H63: =H52+H62 -> 18 | I63: =I52+I62 -> 158 | J63: =J52+J62 -> 1241 | L63: =L52+L62 -> 125.28
A64: 1 | B64: 4 | C64: Завтрак | D64: гор.блюдо | E64: Запеченная рыба с картофельным пюре | F64: 240 | G64: 13 | H64: 11 | I64: 25 | J64: =217+123 -> 340 | L64: 60.85
D65: гор.напиток | E65: Чай с сахаром | F65: 200 | I65: 15 | J65: 125 | L65: 3.64
D66: хлеб | E66: Хлеб пшеничный | F66: 110 | G66: 6 | H66: 2 | I66: 28 | J66: 195 | L66: 7.04
D67: фрукты | E67: Апельсин | F67: 100 | G67: 1 | H67: 0 | I67: 8 | J67: 43 | L67: 17
D71: итого | F71: =SUM(F64:F70) -> 650 | G71: =SUM(G64:G70) -> 20 | H71: =SUM(H64:H70) -> 13 | I71: =SUM(I64:I70) -> 76 | J71: =SUM(J64:J70) -> 703 | L71: =SUM(L64:L70) -> 88.53
A72: =A64 -> 1 | B72: =B64 -> 4 | C72: Обед | D72: закуска
D73: 1 блюдо
D74: 2 блюдо
D75: гарнир
D76: сладкое
D77: хлеб бел.
D78: хлеб черн.
D81: итого | F81: =SUM(F72:F80) -> 0 | G81: =SUM(G72:G80) -> 0 | H81: =SUM(H72:H80) -> 0 | I81: =SUM(I72:I80) -> 0 | J81: =SUM(J72:J80) -> 0 | K81: =SUM(K72:K80) -> 0 | L81: 0
A82: =A64 -> 1 | B82: =B64 -> 4 | C82: Итого за день: | F82: =F71+F81 -> 650 | G82: =G71+G81 -> 20 | H82: =H71+H81 -> 13 | I82: =I71+I81 -> 76 | J82: =J71+J81 -> 703 | L82: =L71+L81 -> 88.53
A83: 1 | B83: 5 | C83: Завтрак | D83: гор.блюдо | E83: Биточки куриные со сметанным соусом и пшенкой | F83: 300 | G83: 16 | H83: 25 | I83: 32 | J83: 332 | L83: 56.73
D84: гор.напиток | E84: Кисель | F84: 180 | I84: 15 | J84: 125 | L84: 4.64
D85: хлеб | E85: Хлеб пшеничный | F85: 110 | G85: 6 | H85: 2 | I85: 28 | J85: 195 | L85: 7.04
D86: Фрукты | E86: Яблоко | F86: 100 | G86: 0 | H86: 0 | I86: 9 | J86: 47 | L86: 11
D90: итого | F90: =SUM(F83:F89) -> 690 | G90: =SUM(G83:G89) -> 22 | H90: =SUM(H83:H89) -> 27 | I90: =SUM(I83:I89) -> 84 | J90: =SUM(J83:J89) -> 699 | L90: =SUM(L83:L89) -> 79.41
A91: =A83 -> 1 | B91: =B83 -> 5 | C91: Обед | D91: закуска
D92: 1 блюдо
D93: 2 блюдо
D94: гарнир
D95: сладкое
D96: хлеб бел.
D97: хлеб черн.
D98: фрукты
D100: итого | F100: =SUM(F91:F99) -> 0 | G100: =SUM(G91:G99) -> 0 | H100: =SUM(H91:H99) -> 0 | I100: =SUM(I91:I99) -> 0 | J100: =SUM(J91:J99) -> 0 | K100: =SUM(K91:K99) -> 0 | L100: 0
A101: =A83 -> 1 | B101: =B83 -> 5 | C101: Итого за день: | F101: =F90+F100 -> 690 | G101: =G90+G100 -> 22 | H101: =H90+H100 -> 27 | I101: =I90+I100 -> 84 | J101: =J90+J100 -> 699 | L101: =L90+L100 -> 79.41
A102: 2 | B102: 1 | C102: Завтрак | D102: гор.блюдо | E102: Мясо индейки отварное в сметанном соусе с макаронами | F102: 300 | G102: 14 | H102: 27 | I102: 45 | J102: 484 | L102: 75.61
D103: гор.напиток | E103: Компот из яблок | F103: 180 | I103: 15 | J103: 69 | L103: 3.34
D104: хлеб | E104: Хлеб пшеничный | F104: 110 | G104: 6 | H104: 2 | I104: 28 | J104: 195 | L104: 7.04
D105: фрукты | E105: Апельсин | F105: 100 | G105: 1 | H105: 0 | I105: 8 | J105: 43 | L105: 17
D109: итого | F109: =SUM(F102:F108) -> 690 | G109: =SUM(G102:G108) -> 21 | H109: =SUM(H102:H108) -> 29 | I109: =SUM(I102:I108) -> 96 | J109: =SUM(J102:J108) -> 791 | L109: =SUM(L102:L108) -> 102.99
A110: =A102 -> 2 | B110: =B102 -> 1 | C110: Обед | D110: закуска
D111: 1 блюдо
D112: 2 блюдо
D113: гарнир
D114: сладкое
D115: хлеб бел.
D116: хлеб черн.
D119: итого | F119: =SUM(F110:F118) -> 0 | G119: =SUM(G110:G118) -> 0 | H119: =SUM(H110:H118) -> 0 | I119: =SUM(I110:I118) -> 0 | J119: =SUM(J110:J118) -> 0 | K119: =SUM(K110:K118) -> 0 | L119: 0
A120: =A102 -> 2 | B120: =B102 -> 1 | C120: Итого за день: | F120: =F109+F119 -> 690 | G120: =G109+G119 -> 21 | H120: =H109+H119 -> 29 | I120: =I109+I119 -> 96 | J120: =J109+J119 -> 791 | L120: =L109+L119 -> 102.99
A121: 2 | B121: 2 | C121: Завтрак | D121: гор.блюдо | E121: Котлета мясная с отварной гречкой | F121: 240 | G121: 16 | H121: 23 | I121: 25 | J121: 268 | L121: 76.7
D122: гор.напиток | E122: Чай с сахаром | F122: 200 | I122: 15 | J122: 125 | L122: 3.64
D123: хлеб | E123: Хлеб пшеничный | F123: 110 | G123: 6 | H123: 2 | I123: 28 | J123: 195 | L123: 7.04
D124: закуска | E124: Свекла отварная с растительным маслом | F124: 60 | G124: 3 | H124: 2 | I124: 11 | J124: 139 | L124: 3.38
D125: фрукты | E125: Киви | F125: 100 | G125: 1 | H125: 0 | I125: 8 | J125: 47 | L125: 27
D128: итого | F128: =SUM(F121:F127) -> 710 | G128: =SUM(G121:G127) -> 26 | H128: =SUM(H121:H127) -> 27 | I128: =SUM(I121:I127) -> 87 | J128: =SUM(J121:J127) -> 774 | L128: =SUM(L121:L127) -> 117.76
A129: =A121 -> 2 | B129: =B121 -> 2 | C129: Обед | D129: закуска
D130: 1 блюдо
D131: 2 блюдо
D132: гарнир
D133: сладкое
D134: хлеб бел.
D135: хлеб черн.
D136: фрукты
D138: итого | F138: =SUM(F129:F137) -> 0 | G138: =SUM(G129:G137) -> 0 | H138: =SUM(H129:H137) -> 0 | I138: =SUM(I129:I137) -> 0 | J138: =SUM(J129:J137) -> 0 | K138: =SUM(K129:K137) -> 0 | L138: 0
A139: =A121 -> 2 | B139: =B121 -> 2 | C139: Итого за день: | F139: =F128+F138 -> 710 | G139: =G128+G138 -> 26 | H139: =H128+H138 -> 27 | I139: =I128+I138 -> 87 | J139: =J128+J138 -> 774 | L139: =L128+L138 -> 117.76
A140: 2 | B140: 3 | C140: Завтрак | D140: гор.блюдо | E140: Биточки куриные со сметанным соусом и отварной пшенкой | F140: 300 | G140: 6 | H140: 25 | I140: 28 | J140: 301 | L140: 55.5
D141: гор.напиток | E141: Кисель | F141: 180 | I141: 15 | J141: 53 | L141: 4.63
D142: хлеб | E142: Хлеб пшеничный | F142: 110 | G142: 6 | H142: 2 | I142: 28 | J142: 195 | L142: 7.04
E143: Печенье | F143: 100 | G143: 7 | H143: 5 | I143: 75 | J143: 400 | L143: 19
D147: итого | F147: =SUM(F140:F146) -> 690 | G147: =SUM(G140:G146) -> 19 | H147: =SUM(H140:H146) -> 32 | I147: =SUM(I140:I146) -> 146 | J147: =SUM(J140:J146) -> 949 | L147: =SUM(L140:L146) -> 86.17
A148: =A140 -> 2 | B148: =B140 -> 3 | C148: Обед | D148: закуска
D149: 1 блюдо
D150: 2 блюдо
D151: гарнир
D152: сладкое
D153: хлеб бел.
D154: хлеб черн.
D157: итого | F157: =SUM(F148:F156) -> 0 | G157: =SUM(G148:G156) -> 0 | H157: =SUM(H148:H156) -> 0 | I157: =SUM(I148:I156) -> 0 | J157: =SUM(J148:J156) -> 0 | K157: =SUM(K148:K156) -> 0 | L157: 0
A158: =A140 -> 2 | B158: =B140 -> 3 | C158: Итого за день: | F158: =F147+F157 -> 690 | G158: =G147+G157 -> 19 | H158: =H147+H157 -> 32 | I158: =I147+I157 -> 146 | J158: =J147+J157 -> 949 | L158: =L147+L157 -> 86.17
A159: 2 | B159: 4 | C159: Завтрак | D159: гор.блюдо | E159: Запеченная рыба с картофельным пюре | F159: 240 | G159: 13 | H159: 11 | I159: 25 | J159: =221+156 -> 377 | L159: 60.85
D160: гор.напиток | E160: Чай с сахаром | F160: 200 | I160: 15 | J160: 125 | L160: 3.64
D161: хлеб | E161: Хлеб пшеничный | F161: 110 | G161: 6 | H161: 2 | I161: 28 | J161: 195 | L161: 7.04
D162: фрукты | E162: Апельсин | F162: 100 | G162: 1 | H162: 0 | I162: 8 | J162: 43 | L162: 17
D166: итого | F166: =SUM(F159:F165) -> 650 | G166: =SUM(G159:G165) -> 20 | H166: =SUM(H159:H165) -> 13 | I166: =SUM(I159:I165) -> 76 | J166: =SUM(J159:J165) -> 740 | L166: =SUM(L159:L165) -> 88.53
A167: =A159 -> 2 | B167: =B159 -> 4 | C167: Обед | D167: закуска
D168: 1 блюдо
D169: 2 блюдо
D170: гарнир
D171: сладкое
D172: хлеб бел.
D173: хлеб черн.
D174: фрукты
D176: итого | F176: =SUM(F167:F175) -> 0 | G176: =SUM(G167:G175) -> 0 | H176: =SUM(H167:H175) -> 0 | I176: =SUM(I167:I175) -> 0 | J176: =SUM(J167:J175) -> 0 | K176: =SUM(K167:K175) -> 0 | L176: 0
A177: =A159 -> 2 | B177: =B159 -> 4 | C177: Итого за день: | F177: =F166+F176 -> 650 | G177: =G166+G176 -> 20 | H177: =H166+H176 -> 13 | I177: =I166+I176 -> 76 | J177: =J166+J176 -> 740 | L177: =L166+L176 -> 88.53
A178: 2 | B178: 5 | C178: Завтрак | D178: гор.блюдо | E178: Соус картофельный с мясом | F178: 250 | G178: 3 | H178: 7 | I178: 17 | J178: 319 | L178: 84.59
D179: гор.напиток | E179: Компот из яблок | F179: 180 | I179: 15 | J179: 69 | L179: 3.34
D180: хлеб | E180: Хлеб пшеничный | F180: 110 | G180: 6 | H180: 2 | I180: 28 | J180: 195 | L180: 7.04
D181: фрукты | E181: Яблоко | F181: 100 | G181: 0 | H181: 0 | I181: 9 | J181: 47 | L181: 11
D185: итого | F185: =SUM(F178:F184) -> 640 | G185: =SUM(G178:G184) -> 9 | H185: =SUM(H178:H184) -> 9 | I185: =SUM(I178:I184) -> 69 | J185: =SUM(J178:J184) -> 630 | L185: =SUM(L178:L184) -> 105.97
A186: =A178 -> 2 | B186: =B178 -> 5 | C186: Обед | D186: закуска
D187: 1 блюдо
D188: 2 блюдо
D189: гарнир
D190: сладкое
D191: хлеб бел.
D192: хлеб черн.
D195: итого | F195: =SUM(F186:F194) -> 0 | G195: =SUM(G186:G194) -> 0 | H195: =SUM(H186:H194) -> 0 | I195: =SUM(I186:I194) -> 0 | J195: =SUM(J186:J194) -> 0 | K195: =SUM(K186:K194) -> 0 | L195: 0
A196: =A178 -> 2 | B196: =B178 -> 5 | C196: Итого за день: | F196: =F185+F195 -> 640 | G196: =G185+G195 -> 9 | H196: =H185+H195 -> 9 | I196: =I185+I195 -> 69 | J196: =J185+J195 -> 630 | L196: =L185+L195 -> 105.97
C197: Среднее значение за период: | F197: =(F24+F43+F63+F82+F101+F120+F139+F158+F177+F196)/(IF(F24=0,0,1)+IF(F43=0,0,1)+IF(F63=0,0,1)+IF(F82=0,0,1)+IF(F101=0,0,1)+IF(F120=0,0,1)+IF(F139=0,0,1)+IF(F158=0,0,1)+IF(F177=0,0,1)+IF(F196=0,0,1)) -> 691 | G197: =(G24+G43+G63+G82+G101+G120+G139+G158+G177+G196)/(IF(G24=0,0,1)+IF(G43=0,0,1)+IF(G63=0,0,1)+IF(G82=0,0,1)+IF(G101=0,0,1)+IF(G120=0,0,1)+IF(G139=0,0,1)+IF(G158=0,0,1)+IF(G177=0,0,1)+IF(G196=0,0,1)) -> 19.7 | H197: =(H24+H43+H63+H82+H101+H120+H139+H158+H177+H196)/(IF(H24=0,0,1)+IF(H43=0,0,1)+IF(H63=0,0,1)+IF(H82=0,0,1)+IF(H101=0,0,1)+IF(H120=0,0,1)+IF(H139=0,0,1)+IF(H158=0,0,1)+IF(H177=0,0,1)+IF(H196=0,0,1)) -> 22 | I197: =(I24+I43+I63+I82+I101+I120+I139+I158+I177+I196)/(IF(I24=0,0,1)+IF(I43=0,0,1)+IF(I63=0,0,1)+IF(I82=0,0,1)+IF(I101=0,0,1)+IF(I120=0,0,1)+IF(I139=0,0,1)+IF(I158=0,0,1)+IF(I177=0,0,1)+IF(I196=0,0,1)) -> 96.1 | J197: =(J24+J43+J63+J82+J101+J120+J139+J158+J177+J196)/(IF(J24=0,0,1)+IF(J43=0,0,1)+IF(J63=0,0,1)+IF(J82=0,0,1)+IF(J101=0,0,1)+IF(J120=0,0,1)+IF(J139=0,0,1)+IF(J158=0,0,1)+IF(J177=0,0,1)+IF(J196=0,0,1)) -> 785.2 | L197: =(L24+L43+L63+L82+L101+L120+L139+L158+L177+L196)/(IF(L24=0,0,1)+IF(L43=0,0,1)+IF(L63=0,0,1)+IF(L82=0,0,1)+IF(L101=0,0,1)+IF(L120=0,0,1)+IF(L139=0,0,1)+IF(L158=0,0,1)+IF(L177=0,0,1)+IF(L196=0,0,1)) -> 99.691
